Cogmind - Beta 9.2 @@@ ROGUE MODE // 2019.11.14 @ 16:55:57 Player: Demise Result: Self-destructed Performance ------------- Evolutions (2) 1000 Regions Visited (5) 1000 Robots Destroyed (11) 55 Value Destroyed (151) 151 Prototype IDs (23) 460 Alien Tech Used (0) 0 Bonus (300) 300 TOTAL SCORE: 2966 Bonus ------- Aligned with FarCom 300 Cogmind --------- Core Integrity 517/550 Matter 255/300 Energy 160/160 System Corruption 2% Temperature Cool (0) Movement Flying (120) Ox1 Location -8/Materials Parts ------- > --- POWER (1) -------- Light Nuclear Core > --- PROPULSION (2) --- Flight Unit > --- UTILITY (6) ------ Small Storage Unit Weight Redist. System Advanced Sensor Array Advanced Signal Interpreter Improved Terrain Scan Processor > --- WEAPON (2) ------- Minigun > --- INVENTORY (6) ---- Humpback High-capacity Matter Pod (189) Arc Projector Guided Plasma Cannon Mining Laser Peak State ------------ > --- POWER ------------ Light Nuclear Core > --- PROPULSION ------- Flight Unit Flight Unit > --- UTILITY ---------- Small Storage Unit Weight Redist. System Advanced Sensor Array Advanced Signal Interpreter Improved Terrain Scanner Improved Terrain Scan Processor > --- WEAPON ----------- Guided Plasma Cannon Minigun > --- INVENTORY -------- Humpback High-capacity Matter Pod Beam Rifle Mining Laser [Rating: 30] Favorites ----------- Power Light Nuclear Core Engine Light Ion Engine Power Core Light Nuclear Core Propulsion Flight Unit Wheel Wheel Flight Unit Flight Unit Utility Improved Terrain Scan Processor Device Improved Terrain Scanner Storage Small Storage Unit Processor Improved Terrain Scan Processor Weapon Minigun Energy Gun Beam Rifle Energy Cannon Guided Plasma Cannon Ballistic Gun Minigun Special Weapon Mining Laser Build | -11 -10 -10 -10 -9 -8 ------- Run | Scr Mat Min Exi Min Mat Slots Evolved 4 | . . . . . 4 Power . | . . . . . . Propulsion . | . . . . . . Utility 4 | . . . . . 4 Weapon . | . . . . . . Parts Attached 29 | 7 . 7 1 . 14 Power 4 | . . 1 . . 3 Engine 1 | . . 1 . . . Core 3 | . . . . . 3 Reactor . | . . . . . . Propulsion 5 | 3 . 2 . . . Treads . | . . . . . . Leg . | . . . . . . Wheel 3 | 3 . . . . . Hover . | . . . . . . Flight 2 | . . 2 . . . Utility 9 | 2 . 2 . . 5 Device 5 | 1 . . . . 4 Storage 1 | . . 1 . . . Processor 3 | 1 . 1 . . 1 Hackware . | . . . . . . Protection . | . . . . . . Artifact . | . . . . . . Weapon 11 | 2 . 2 1 . 6 Energy Gun 1 | . . . . . 1 Energy Cannon 3 | . . . . . 3 Ballistic Gun 5 | 2 . 2 . . 1 Ballistic Cannon . | . . . . . . Launcher . | . . . . . . Special Weapon 2 | . . . 1 . 1 Impact Weapon . | . . . . . . Slashing Weapon . | . . . . . . Piercing Weapon . | . . . . . . Special Melee Weapon . | . . . . . . Unidentified Prototypes 1 | . . . . . 1 Parts Lost 6 | . . 3 . . 3 Power 1 | . . . . . 1 Propulsion 3 | . . 2 . . 1 Utility 1 | . . . . . 1 Weapon 1 | . . 1 . . . Highest Loss Streak 2 | . . 2 . . 1 Average Slot Usage (%) 84 | . 85 78 85 85 87 Core 3 | . . . . . 8 Wheel 2 | . 28 12 . . . Flight 19 | . . 9 28 28 17 Device 8 | . 14 . . . 20 Storage 11 | . . 13 14 14 9 Processor 15 | . 14 14 14 14 18 Ballistic Gun 15 | . 28 28 19 14 9 Special Weapon 6 | . . . 8 14 4 Naked Turns . | . . . . . . Heaviest Build 24 | 3 3 8 8 8 24 Greatest Support 20 | 3 3 10 8 8 20 Greatest Overweight (x) 2 | . . 2 . . 1 Average Overweight (x) . | . . . . . . Largest Inventory Capacity 6 | 4 4 6 6 6 6 Average Capacity 5 | 4 4 5 6 6 6 Most Carried 6 | 4 4 6 6 6 6 Average Carried 5 | 3 3 5 5 6 5 Final Capacity 6 | 4 4 6 6 6 6 Final Carried 6 | 3 4 6 6 6 6 Class Distribution -------------------- 62% | Mutant 24% | Scout 12% | Scavenger-Mutant Dominant Class ---------------- Scavenger-Mutant | -10/Materials Mutant | -10/Mines Mutant | -10/Exiles Mutant | -9/Mines Scout | -8/Materials Resources | -11 -10 -10 -10 -9 -8 ----------- Run | Scr Mat Min Exi Min Mat Matter Collected 603 | 328 . 35 70 59 111 Remotely . | . . . . . . Salvage Created 323 | 177 . 35 . . 111 Parts 24 | 11 . 8 . . 5 Haulers Intercepted . | . . . . . . Recyclers Shooed 2 | 2 . . . . . Parts Field Recycled . | . . . . . . Retrieved Matter . | . . . . . . Parts Self-Destructed . | . . . . . . Prevented . | . . . . . . Kills | -11 -10 -10 -10 -9 -8 ------- Run | Scr Mat Min Exi Min Mat Combat Hostiles Destroyed 5 | . . 3 . . 2 Guns 3 | . . 3 . . . Cannons 2 | . . . . . 2 Classes Destroyed 6 | 3 . 1 . . 2 Worker 2 | 2 . . . . . Tunneler 3 | 3 . . . . . Recycler 1 | 1 . . . . . Swarmer 3 | . . 3 . . . Grunt 1 | . . . . . 1 Sentry 1 | . . . . . 1 Best Kill Streak 4 | 4 . 3 . . 1 Combat Bots Only 3 | . . 3 . . 1 Max Kills in Single Turn 2 | 1 . 2 . . 1 Gunslinging 1 | . . 1 . . . Exploded . | . . . . . . Melee . | . . . . . . Uniques/NPCs Destroyed . | . . . . . . Combat | -11 -10 -10 -10 -9 -8 -------- Run | Scr Mat Min Exi Min Mat Damage Taken 501 | . 62 281 . . 158 Core 135 | . 31 71 . . 33 Absorbed by Shields . | . . . . . . Core Remaining (%) 79 | 100 . . . 59 . Volleys Fired 46 | 29 . 11 . . 6 Largest 2 | 2 . 2 . . 1 Hottest 120 | 40 . 45 . . 120 Shots Fired 86 | 58 . 22 . . 6 Gun 84 | 58 . 22 . . 4 Cannon 2 | . . . . . 2 Launcher . | . . . . . . Special . | . . . . . . Kinetic 84 | 58 . 22 . . 4 Thermal 2 | . . . . . 2 Explosive . | . . . . . . Electromagnetic . | . . . . . . Robot Hit Streak 5 | 5 . 3 . . 4 Robot Miss Streak 5 | 4 . 5 . . 1 Penetration Max . | . . . . . . Secondary Targets 1 | . . 1 . . . Max Gunslinging Chain 1 | . . 1 . . . Shots Hit Robots 44 | 30 . 10 . . 4 Core Hits 20 | 12 . 5 . . 3 Critical Hits 2 | 1 . 1 . . . Critical Kills 1 | . . 1 . . . Critical Parts Destroyed 1 | 1 . . . . . Melee Attacks . | . . . . . . Impact . | . . . . . . Slashing . | . . . . . . Piercing . | . . . . . . Sneak Attacks . | . . . . . . Combat Hostiles . | . . . . . . Follow-up Attacks . | . . . . . . Damage Inflicted 458 | 250 . 87 . . 121 Guns 388 | 250 . 87 . . 51 Cannons 70 | . . . . . 70 Explosions . | . . . . . . Melee . | . . . . . . Ramming . | . . . . . . Kinetic 388 | 250 . 87 . . 51 Thermal 70 | . . . . . 70 Explosive . | . . . . . . Electromagnetic . | . . . . . . Impact . | . . . . . . Slashing . | . . . . . . Piercing . | . . . . . . Highest Corruption 2 | . . . . . 2 Average Corruption 1 | . . . . . 1 Corruption Purged . | . . . . . . Effects 4 | . . . . . 4 Message Errors 2 | . . . . . 2 Energy Discharges 2 | . . . . . 2 Overload Shots . | . . . . . . Overflow Damage . | . . . . . . Projectiles . | . . . . . . Explosions . | . . . . . . Melee . | . . . . . . Knockbacks . | . . . . . . Impact . | . . . . . . Kinetic . | . . . . . . Secondary . | . . . . . . Self-Inflicted Damage . | . . . . . . Shots . | . . . . . . Rammed . | . . . . . . Targets Rammed . | . . . . . . Kicked . | . . . . . . Crushed . | . . . . . . Highest Temperature 76 | . . . . . 76 Average Temperature 30 | . . . . . 30 Received Heat Transfer 36 | . . . . . 36 Siege Activations . | . . . . . . Robots Corrupted . | . . . . . . Combat Hostiles . | . . . . . . Parts Fried . | . . . . . . Impact Corruptions . | . . . . . . Robots Melted . | . . . . . . Combat Hostiles . | . . . . . . Parts Melted . | . . . . . . Heat Transferred 160 | . . . . . 160 Parts Sabotaged . | . . . . . . Parts Stolen . | . . . . . . Parts Stripped . | . . . . . . Power Chain Reactions . | . . . . . . Missiles Intercepted . | . . . . . . Alert | -11 -10 -10 -10 -9 -8 ------- Run | Scr Mat Min Exi Min Mat Peak Influence 62 | 30 57 62 . . 62 Average Influence 21 | 10 41 36 . . 30 Maximum Alert Level . | . . . . . . Low Security (%) 100 | 100 100 100 . 100 100 Level 1 . | . . . . . . Level 2 . | . . . . . . Level 3 . | . . . . . . Level 4 . | . . . . . . Level 5 . | . . . . . . High Security . | . . . . . . Max Security . | . . . . . . Squads Dispatched 1 | . . . . . 1 Investigation . | . . . . . . Extermination . | . . . . . . Reinforcement 1 | . . . . . 1 Assault . | . . . . . . Garrison . | . . . . . . Intercept . | . . . . . . Construction Impeded . | . . . . . . Haulers Reinforced . | . . . . . . Stealth | -11 -10 -10 -10 -9 -8 --------- Run | Scr Mat Min Exi Min Mat Distress Signals 2 | . . . . . 2 Communications Jammed . | . . . . . . Distress Signals . | . . . . . . Times Spotted 17 | . 4 3 . . 10 Peak Tracking Total 5 | . 4 3 . . 5 Tactical Retreats 3 | . . . . . 3 Traps | -11 -10 -10 -10 -9 -8 ------- Run | Scr Mat Min Exi Min Mat Traps Triggered 3 | . . 1 . . 2 Indirectly . | . . . . . . Trap Hack Attempts . | . . . . . . Triggered . | . . . . . . Disarmed . | . . . . . . Reprogrammed . | . . . . . . Reused . | . . . . . . Traps Extracted . | . . . . . . Installed . | . . . . . . Triggered . | . . . . . . Machines | -11 -10 -10 -10 -9 -8 ---------- Run | Scr Mat Min Exi Min Mat Machines Disabled . | . . . . . . Max in Single Turn . | . . . . . . Machines Sabotaged . | . . . . . . Garrisons Compromised . | . . . . . . Overloaded Fab Kills . | . . . . . . Fab Network Shutdowns . | . . . . . . Hacking | -11 -10 -10 -10 -9 -8 --------- Run | Scr Mat Min Exi Min Mat Machines Accessed 5 | . 2 1 1 . 1 Terminals 2 | . 2 . . . . Fabricators . | . . . . . . Repair Stations . | . . . . . . Recycling Units . | . . . . . . Scanalyzers 1 | . . . . . 1 Garrison Access . | . . . . . . Total Hacks 11 | . 7 1 1 . 2 Successful 7 | . 3 1 1 . 2 Failed 4 | . 4 . . . . Catastrophic . | . . . . . . Database Lockouts . | . . . . . . Manual 8 | . 7 . 1 . . Terminals 7 | . 7 . . . . Fabricators . | . . . . . . Repair Stations . | . . . . . . Recycling Units . | . . . . . . Scanalyzers 2 | . . . . . 2 Garrison Access . | . . . . . . Terminal Hacks 3 | . 1 1 1 . . Open Door 1 | . . 1 . . . Branch Access Points 1 | . 1 . . . . EX-Prototype ID Bank 1 | . . . 1 . . Fabricator Hacks . | . . . . . . Repair Station Hacks . | . . . . . . Recycling Unit Hacks . | . . . . . . Scanalyzer 2 | . . . . . 2 Insert Component 1 | . . . . . 1 Analyze 1 | . . . . . 1 Garrison Access Hacks . | . . . . . . Unauthorized Hacks 5 | . 5 . . . . Terminals 2 | . 2 . . . . Botnet 2 | . 2 . . . . Fabricators . | . . . . . . Repair Stations . | . . . . . . Recycling Units . | . . . . . . Scanalyzers . | . . . . . . Garrison Access . | . . . . . . Data Cores Recovered . | . . . . . . Used . | . . . . . . Hacking Detections 3 | . 2 . . . 1 Full Trace Events . | . . . . . . Feedback Events . | . . . . . . Feedback Blocked . | . . . . . . Robot Schematics Acquired . | . . . . . . Robots Built . | . . . . . . Matter . | . . . . . . Time . | . . . . . . Total Robot Build Rating . | . . . . . . Part Schematics Acquired 1 | . . . . . 1 Parts Built . | . . . . . . Matter . | . . . . . . Time . | . . . . . . Total Part Build Rating . | . . . . . . Parts Repaired . | . . . . . . Time . | . . . . . . Parts Recycled . | . . . . . . Recycled Matter . | . . . . . . Retrieved Matter . | . . . . . . Retrieved Components . | . . . . . . Parts Scanalyzed 1 | . . . . . 1 Part Schematics Acquired 1 | . . . . . 1 Parts Damaged . | . . . . . . Bothacking | -11 -10 -10 -10 -9 -8 ------------ Run | Scr Mat Min Exi Min Mat Used RIF Installer . | . . . . . . Robots Hacked . | . . . . . . Non-combat . | . . . . . . Combat . | . . . . . . Robot Hacks Applied . | . . . . . . Relay Couplers Released . | . . . . . . Robots Rewired . | . . . . . . Allies Hacked . | . . . . . . Hacks Repelled . | . . . . . . Allies | -11 -10 -10 -10 -9 -8 -------- Run | Scr Mat Min Exi Min Mat Total Allies . | . . . . . . Largest Group . | . . . . . . Highest-Rated Group . | . . . . . . Highest-Rated Ally . | . . . . . . Total Orders . | . . . . . . Ally Attacks . | . . . . . . Total Damage . | . . . . . . Kills . | . . . . . . Allies Corrupted . | . . . . . . Allies Melted . | . . . . . . Intel | -11 -10 -10 -10 -9 -8 ------- Run | Scr Mat Min Exi Min Mat Robot Analysis Total . | . . . . . . Derelict Logs Recovered 2 | . . 2 . . . Drone Launches . | . . . . . . Drone Recoveries . | . . . . . . Exploration | -11 -10 -10 -10 -9 -8 ------------- Run | Scr Mat Min Exi Min Mat Turns Passed 1283 | 141 46 181 181 296 438 Spaces Moved 1269 | 97 86 198 272 315 301 Core 246 | 97 86 63 . . . Treads . | . . . . . . Legs . | . . . . . . Wheels 24 | . . 24 . . . Hover . | . . . . . . Flight 999 | . . 111 272 315 301 Fastest Speed 37 | 50 50 37 37 37 37 Average Speed 45 | 50 50 59 37 37 48 Slowest Speed 150 | 50 50 150 37 37 120 Overloaded Moves . | . . . . . . Propulsion Burnouts . | . . . . . . Robots Hopped 10 | . . 1 . 9 . Cave-ins Triggered . | . . . . . . Exploration Rate (%) 32 | 4 23 24 66 56 21 Regions Visited 5 Branch Regions 3 Pre-discovered Areas 3 | . . 2 . 1 . Known Exits Taken 1 | . 1 . . . . Unknown Exits Taken 4 | 1 . 1 1 1 . Scrap Searched 1 | . . . . 1 . Spaces Dug . | . . . . . . Terrain Destroyed . | . . . . . . Melee . | . . . . . . Projectile . | . . . . . . AOE . | . . . . . . Actions | -11 -10 -10 -10 -9 -8 --------- Run | Scr Mat Min Exi Min Mat Total 1895 | 142 90 240 353 484 586 Wait 524 | . . 19 73 179 253 Move 1245 | 96 85 195 271 297 301 Hop 9 | . . 1 . 8 . Pick Up 17 | 6 3 4 3 . 1 Fast Attach 18 | 6 . 3 1 . 8 Attach 6 | . . 1 . . 5 Detach 6 | . . . . . 6 Swap 6 | 1 . 3 . . 2 Drop 18 | 4 2 3 5 . 4 Fire 46 | 29 . 11 . . 6 Melee . | . . . . . . Ram . | . . . . . . Kick . | . . . . . . Crush . | . . . . . . Escape Stasis . | . . . . . . Rewire . | . . . . . . Trap . | . . . . . . Miscellaneous . | . . . . . . Route ------- -11/Scrapyard -10/Materials -10/Mines -10/Exiles -9/Mines -8/Materials History --------- Turn | Location | Event 9 | -11/Scrapyard | Discovered new exit (range 16) 142 | -11/Scrapyard | Entered Materials 147 | -10/Materials | Identified exit to Mines 188 | -10/Materials | Entered Mines 191 | -10/Mines | Met a Derelict who couldn't figure out how to use a Trap Extractor 367 | -10/Mines | Deemed a non-threat by the Exiles lab entrance 367 | -10/Mines | Discovered new exit (range 5) 369 | -10/Mines | Entered Exiles 380 | -10/Exiles | Met 8R-AWN 386 | -10/Exiles | Met EX-HEX 412 | -10/Exiles | Met EX-BIN 416 | -10/Exiles | Aligned with FarCom system 416 | -10/Exiles | Given EX-Vault access code 443 | -10/Exiles | Opened EX-Vault 446 | -10/Exiles | Found Gui. Plasma Cannon 469 | -10/Exiles | Build established: Mutant 481 | -10/Exiles | Warned to stay clear of 0b10 Research branches 492 | -10/Exiles | Met EX-DEC 547 | -10/Exiles | Discovered new exit (range 10) 550 | -10/Exiles | Left Exiles lab with Gui. Plasma Cannon 550 | -10/Exiles | Entered Mines 559 | -9/Mines | Learned location of Storage (-8) 841 | -9/Mines | Discovered new exit (range 12) 846 | -9/Mines | Entered Materials 846 | -8/Materials | Evolved 4 slots: Utility x4 1193 | -8/Materials | Build established: Scout 1284 | -8/Materials | Self-destructed Last Messages --------------- 01172_ Acquired Lgt. Nuclear Core. 01173_ |C4GQ I0NX< QBWIRPF6MY7UUV0PTQLLU47N%E9HXNI6MQYTWRHHMMUKA/9LM 01226_ Dropped Beam Rifle. 01226_ Acquired Arc Projector. 01240_ Slug penetrates Wall. 01240_ Flight Unit destroyed. 01240_ Door malfunctions. 01269_ Drone sends a signal. 01269_ C-30 ARC bursts open, deploying its payload. 01269_ B-36 Bruiser unfolds itself. 01269_ G-47 Trooper unfolds itself. 01270_ H-55 Commando retrieves Drone. 01274_ Penetrated by Slug. 01274_ Imp. Terrain Scanner destroyed. 01277_ Penetrated by Slug. Map ----- +----------------------------------------------------+ | ????????????# """"" #??#?#?##??? ???????????????? | | ?????? ????## """"" ##??##?#????"???????????????? | | ??????????#?# #?####??????? ??????????????? | | ?? ?????????# *#?????##? "?"???????????????? | | ??????? ???## " " ##?##?##????? ??????????????? | | ???? ?????## "Y" # ? ????#??????#????????????? | | ? ??????? #?# """ ##????#?#???+?#?????????????? | | ??????#####+############? ?????????????????? | | ? ? ???### + ##????? ???????????????? | | ###### # """ #??# ????#?? ??????????? | | # """ #????? ?? ?????????????? | | ???????###### / """ !#???? ? ##?????????????? | | ???? ########+## # #???????##?????????????? | | ?????# # # ##??????#???##?????????? | | ?#??# # ##+######?# ? ##?????????????? | | ?????# # ######## ####???????????? | | ?????# # h t "%" ##?#???????????? | | ??T??# # " #??????????????? | | ?????# # #??????????????? | | ?????# # r +?????????????? | | ????# # g##############?????????????? | | ########/##### b# ##?????????????????? | | a g [ ##??#? ????????????? | | # ! ##?????????????????? | | # ! #??????????????????? | | #####+###+# @! #?#??????k?????????? | | ######### #????? ?#########?????????k????????? | | # # #??????? ?????????#????????k????????? | | # + b +???? ????#???#??????????????????????? | | # # #??????? ???#??????????????w?????????? | | ######?## #??????????#???#?????????????????????? | | ??#??#??# #??????????#?????????????????????????? | | ######### g #????????????????????????????????????? | | #?#???#????#?????????????????????????? | | ###### ##???????????Y???????????????????????? | | ####?# #??#?????????????????????????????????? | | ###??# #????????????????????????????????????? | | ####?# #?##???#?????????????????????????????? | | #?##?# #??#?????????????????????????????????? | | #?#### #?#?????#????????????????????????????? | | ###### # ???????????????????????????????????? | | ##* #? ?????Y???????????????????????????? | | ##* #? ??????????????????????????????????? | | ##!! # ? ?? ??????????????????????????????? | | ##!! + ?????????????????????????????????? | | ##[ [ #? ???????????????????????????????? | | ##[[ #? ? ???????????????????????????????? | | ###### # ? ???????????????????????????????? | | ###### # ? ? ?????????????????????????????? | | ###### #?####?###???????????????????????????? | +----------------------------------------------------+ Best States ------------- Heat Dissipation 31 Energy Generation 14 Energy Capacity 160 Matter Stores 300 Matter Capacity 300 Sight Range 16 Robot Scan Range 16 Terrain Scan Range 16 Terrain Scan Density 110 Additional Mass Support 6 Evasion (%) 62 Item Schematics ----------------- Humpback | -8/Materials | Scanalyzed Robot Schematics ------------------ None Fabricated ------------ Nothing Alien Tech Used ----------------- None Achievements -------------- None Challenges ------------ None Game ------ Seed SalvageBiocellDissipator Manual? 0 Play Time 00:24:33 Cumulative 121.3 hours Start 2019.11.14 @ 16:33:54 End 2019.11.14 @ 16:55:57 Sessions 1 Manual Loads 0 Difficulty Rogue Special Mode None Game No. 163 Rogue 152 Adventurer 11 Explorer 0 Win Type - Total 0 Types 0/0/0/0/0/0/0 Lore% 43 Gallery% 54 Achievement% 37 Wizard Run 0 Options --------- ASCII 0 Keyboard 1 Movement Numpad Keybinds 0 Fullscreen 1 Font 12/Terminus Map View 83x54 Tactical HUD 1 Map Filters NONE Filters NONE Steam 1 RUN: a7e55821-e4a1-4765-ade2-fb92fb824890